fUST/lending_fUST_20240810
["ID","MTS","AMOUNT","RATE_DAILY","PERIOD"]
[334572871,1723251038753,-5170.16791471,0.0001891,2]
[334572872,1723251038762,-4635.70832959,0.00018922,2]
[334572873,1723251038772,-154.77557542,0.00018989,2]
[334572874,1723251038783,-154.12,0.0001899,3]
[334572875,1723251038794,-462.39,0.0001899,3]
[334572876,1723251038804,-58246.5032821,0.00019,2]
[334572877,1723251038813,-153.0,0.00019041,2]
[334572878,1723251038823,-153.0,0.000191,2]
[334572879,1723251038832,-153.0,0.000191,2]
[334572880,1723251038843,-308.25,0.00019143,3]
[334572881,1723251038852,-616.5,0.00019144,3]
[334572882,1723251038861,-182.28089205,0.00019153,2]
[334572883,1723251038871,-594.00415574,0.00019153,2]
[334572885,1723251038881,-52776.1047393,0.00019154,2]
[334572887,1723251038890,-4635.70832957,0.00019164,2]
[334572889,1723251038900,-166.733183,0.00019178,2]
[334572891,1723251038908,-589.133361,0.000192,2]
[334572892,1723251038921,-267.8162636,0.000192,2]
[334572893,1723251038930,-150.112233,0.000192,2]
[334572894,1723251038940,-153.0,0.000192,2]
[334572895,1723251038950,-207.2250634,0.00019233,2]
[334572896,1723251038959,-306.0,0.00019233,2]
[334572897,1723251038969,-153.0,0.00019233,2]
[334572898,1723251038978,-294.5666805,0.00019233,2]
[334572899,1723251038988,-153.0,0.00019233,2]
[334572900,1723251038997,-153.2214191,0.00019233,2]
[334572901,1723251039006,-267.8162636,0.00019233,2]
[334572902,1723251039016,-153.0,0.00019241,2]
[334572903,1723251039025,-153.0,0.00019241,2]
[334572904,1723251039034,-294.5666805,0.00019256,2]
[334572905,1723251039044,-153.0,0.00019256,2]
[334572906,1723251039053,-535.6325272,0.00019256,2]
[334572907,1723251039063,-153.0,0.00019256,2]
[334572908,1723251039073,-294.5666805,0.00019256,2]
[334572909,1723251039082,-535.6325272,0.00019256,2]
[334572910,1723251039091,-294.5666805,0.000193,2]
[334572911,1723251039101,-5170.16791471,0.00019307,2]
[334572912,1723251039110,-150.112233,0.000194,2]
[334572913,1723251039120,-4635.70832957,0.00019406,2]
[334572914,1723251039129,-664.1943135,0.000195,2]
[334572915,1723251039138,-267.8162636,0.000195,2]
[334572916,1723251039149,-153.0,0.000195,2]
[334572917,1723251039160,-207.2250634,0.000195,2]
[334572918,1723251039174,-555.9496995,0.000196,2]
[334572919,1723251039183,-267.8162636,0.000196,2]
[334572920,1723251039195,-294.5666805,0.000196,2]
[334572921,1723251039205,-260.0419857,0.000196,2]
[334572922,1723251039214,-150.112233,0.000196,2]
[334572923,1723251039225,-4635.70832957,0.00019647,2]
[334572924,1723251039235,-5170.16791472,0.00019678,2]
[334572925,1723251039246,-420.0,0.00019718,2]
[334572926,1723251039258,-2911.44693298,0.00019789,2]
[334572927,1723251039267,-150.112233,0.000198,2]
[334572928,1723251039277,-153.0,0.00019863,2]
[334572929,1723251039286,-306.0,0.00019863,2]
[334572930,1723251039295,-153.0,0.00019863,2]
[334572931,1723251039305,-289.8209542,0.00019863,2]
[334572932,1723251039314,-52776.1047393,0.0001987,2]
[334572933,1723251039324,-227.006166,0.0001987,2]
[334572934,1723251039335,-227.006166,0.0001987,2]
[334572935,1723251039345,-227.006166,0.0001987,2]
[334572936,1723251039354,-227.006166,0.0001987,2]
[334572937,1723251039363,-151.0,0.0001987,2]
[334572938,1723251039372,-151.0,0.0001987,2]
[334572939,1723251039381,-151.0,0.0001987,2]
[334572940,1723251039391,-151.0,0.0001987,2]
[334572941,1723251039401,-151.0,0.0001987,2]
[334572942,1723251039410,-151.0,0.0001987,2]
[334572943,1723251039425,-102346.25772545,0.0001987,11]
[334572944,1723251039434,-52776.1047393,0.0001987,2]
[334572945,1723251039444,-2000.0,0.0001988,2]
[334572946,1723251039453,-4635.70832957,0.00019889,2]
[334572947,1723251039463,-414.08239279,0.00019889,2]
[334572948,1723251039472,-500.0,0.00019889,2]
[334572949,1723251039481,-500.0,0.00019889,2]
[334572950,1723251039491,-500.0,0.00019889,2]
[334572951,1723251039500,-500.0,0.00019889,2]
[334572952,1723251039510,-455.06491706,0.00019889,2]
[334572953,1723251039521,-500.0,0.00019889,2]
[334572954,1723251039530,-500.0,0.00019889,2]
[334572955,1723251039540,-500.0,0.00019889,2]
[334572956,1723251039549,-174.92658711,0.00019889,2]
[334572957,1723251039559,-467.75693752,0.00019889,2]
[334572958,1723251039568,-500.0,0.00019889,2]
[334572959,1723251039578,-500.0,0.00019889,2]
[334572960,1723251039588,-500.0,0.00019889,2]
[334572961,1723251039599,-500.0,0.00019889,2]
[334572962,1723251039608,-500.0,0.00019889,2]
[334572963,1723251039618,-500.0,0.00019889,2]
[334572964,1723251039627,-500.0,0.00019889,2]
[334572965,1723251039637,-500.0,0.00019889,2]
[334572966,1723251039646,-500.0,0.00019889,2]
[334572967,1723251039656,-7776.22218588,0.0001989,2]
[334572968,1723251039672,-105552.209479,0.0001997,2]
[334572969,1723251039681,-227.006166,0.0001997,2]
[334572970,1723251039690,-227.006166,0.0001997,2]
[334572971,1723251039700,-227.006166,0.0001997,2]
[334572972,1723251039709,-227.006166,0.0001997,2]
[334572973,1723251039718,-151.0,0.0001997,2]
[334572974,1723251039727,-151.0,0.0001997,2]
[334572975,1723251039737,-151.0,0.0001997,2]
[334572976,1723251039746,-151.0,0.0001997,2]
[334572977,1723251039755,-52776.1047393,0.0001997,2]
[334572978,1723251039764,-200.0,0.00019973,2]
[334572979,1723251039775,-200.0,0.00019973,2]
[334572980,1723251039785,-151.0,0.0001998,2]
[334572981,1723251039794,-151.0,0.0001998,2]
[334572982,1723251039804,-203.551812,0.0001998,2]
[334572983,1723251039813,-203.551812,0.0001998,2]
[334572984,1723251039823,-151.0,0.0001998,2]
[334572985,1723251039832,-151.0,0.0001998,2]
[334572986,1723251039842,-439.008899,0.0001998,2]
[334572987,1723251039851,-439.008899,0.0001998,2]
[334572988,1723251039861,-151.0,0.0001998,2]
[334572989,1723251039871,-246.06013,0.0001998,2]
[334572990,1723251039881,-246.06013,0.0001998,2]
[334572991,1723251039890,-246.06013,0.0001998,2]
[334572992,1723251039900,-246.06013,0.0001998,2]
[334572993,1723251039909,-485.943462,0.0001998,2]
[334572994,1723251039921,-485.943462,0.0001998,2]
[334572995,1723251039930,-151.0,0.0001998,2]
[334572996,1723251039939,-151.0,0.0001998,2]
[334572997,1723251039948,-485.943462,0.0001998,2]
[334572998,1723251039959,-485.943462,0.0001998,2]
[334572999,1723251039968,-227.006166,0.0001998,2]
[334573000,1723251039977,-227.006166,0.0001998,2]
[334573001,1723251039987,-151.0,0.0001998,2]
[334573002,1723251039996,-151.0,0.0001998,2]
[334573003,1723251040005,-151.0,0.00019989,2]
[334573004,1723251040015,-233.36752,0.00019989,2]
[334573005,1723251040024,-203.551812,0.00019989,2]
[334573006,1723251040034,-203.551812,0.00019989,2]
[334573007,1723251040043,-151.0,0.00019989,2]
[334573008,1723251040053,-151.0,0.00019989,2]
[334573009,1723251040064,-439.008899,0.00019989,2]
[334573010,1723251040073,-439.008899,0.00019989,2]
[334573011,1723251040084,-151.0,0.00019989,2]
[334573012,1723251040095,-144312.82788324,0.0001999,2]
[334573013,1723251040103,-151.0,0.0001999,2]
[334573014,1723251040113,-240.917556,0.0001999,2]
[334573015,1723251040122,-151.0,0.0001999,2]
[334573016,1723251040133,-151.0,0.0001999,2]
[334573017,1723251040145,-151.0,0.0001999,2]
[334573018,1723251040158,-203.551812,0.0001999,2]
[334573019,1723251040170,-203.551812,0.0001999,2]
[334573020,1723251040179,-256.473237,0.0001999,2]
[334573021,1723251040188,-151.0,0.0001999,2]
[334573022,1723251040198,-439.008899,0.0001999,2]
[334573024,1723251040208,-439.008899,0.0001999,2]
[334573026,1723251040217,-151.0,0.0001999,2]
[334573027,1723251040232,-246.06013,0.0001999,2]
[334573029,1723251040241,-246.06013,0.0001999,2]
[334573031,1723251040250,-485.943462,0.0001999,2]
[334573032,1723251040259,-151.0,0.0001999,2]
[334573034,1723251040269,-485.943462,0.0001999,2]
[334573036,1723251040278,-227.006166,0.0001999,2]
[334573037,1723251040288,-227.006166,0.0001999,2]
[334573039,1723251040297,-151.0,0.0001999,2]
[334573041,1723251040306,-427.27228194,0.0002,2]
[334573043,1723251040316,-435.0,0.0002,2]
[334573044,1723251040326,-294.28393168,0.0002,2]
[334573046,1723251040335,-336.38121722,0.0002,2]
[334573048,1723251040346,-997.79036029,0.0002,2]
[334573049,1723251040355,-1771.7300395,0.0002,2]
[334573050,1723251040366,-156.45284227,0.0002,2]
[334573051,1723251040375,-153.0,0.0002,2]
[334573052,1723251040384,-153.0,0.0002,2]
[334573053,1723251040393,-306.0,0.0002,2]
[334573054,1723251040402,-485.9218011,0.0002,2]
[334573055,1723251040411,-153.0,0.0002,2]
[334573056,1723251040422,-294.5666805,0.0002,2]
[334573057,1723251040431,-188.09055485,0.0002,2]
[334573058,1723251040442,-294.5666805,0.0002,2]
[334573059,1723251040451,-153.0,0.0002,2]
[334573060,1723251040460,-153.0,0.0002,2]
[334573061,1723251040470,-153.0,0.0002,2]
[334573062,1723251040479,-153.0,0.0002,2]
[334573063,1723251040489,-294.5666805,0.0002,2]
[334573064,1723251040498,-294.5666805,0.0002,2]
[334573065,1723251040507,-153.0,0.0002,2]
[334573066,1723251040516,-294.2800303,0.0002,2]
[334573067,1723251040526,-154.79103211,0.0002,2]
[334573068,1723251040535,-153.0,0.0002,2]
[334573069,1723251040544,-150.112233,0.0002,2]
[334573070,1723251040554,-153.0,0.0002,2]
[334573071,1723251040563,-153.0,0.0002,2]
[334573072,1723251040573,-294.5666805,0.0002,2]
[334573073,1723251040582,-153.0,0.000201,2]
[334573074,1723251040592,-294.5666805,0.000201,2]
[334573075,1723251040603,-150.112233,0.000202,4]
[334573076,1723251040612,-1765.04061816,0.000203,2]
[334573077,1723251040621,-308.24,0.0002036,3]
[334573078,1723251040631,-150.112233,0.000204,4]
[334573079,1723251040640,-153.0,0.00020411,2]
[334573080,1723251040649,-151.0,0.00020487,2]
[334573081,1723251040658,-616.5,0.00020513,3]
[334573082,1723251040669,-1233.0,0.00020514,3]
[334573083,1723251040678,-207.2250634,0.00020548,2]
[334573084,1723251040688,-267.8162636,0.00020548,2]
[334573085,1723251040697,-207.2250634,0.00020548,2]
[334573086,1723251040706,-207.2250634,0.00020548,2]
[334573087,1723251040716,-267.8162636,0.00020548,2]
[334573088,1723251040725,-267.8162636,0.00020548,2]
[334573089,1723251040735,-267.8162636,0.00020548,2]
[334573090,1723251040744,-267.8162636,0.00020548,2]
[334573091,1723251040754,-150.112233,0.000206,5]
[334573092,1723251040763,-151.0,0.00020601,2]
[334573093,1723251040773,-439.008899,0.00020601,2]
[334573094,1723251040783,-439.008899,0.00020601,2]
[334573095,1723251040792,-151.0,0.00020601,2]
[334573096,1723251040801,-227.006166,0.00020601,2]
[334573097,1723251040810,-227.006166,0.00020601,2]
[334573098,1723251040820,-151.0,0.00020601,2]
[334573099,1723251040829,-28545.19855257,0.00020601,3]
[334573100,1723251040838,-151.0,0.0002061,2]
[334573101,1723251040848,-203.551812,0.0002061,2]
[334573102,1723251040858,-203.551812,0.0002061,2]
[334573103,1723251040867,-246.06013,0.0002061,2]
[334573104,1723251040877,-246.06013,0.0002061,2]
[334573105,1723251040886,-485.943462,0.0002061,2]
[334573106,1723251040895,-151.0,0.0002061,2]
[334573107,1723251040904,-485.943462,0.0002061,2]
[334573108,1723251040915,-151.0,0.00020644,2]
[334573109,1723251040927,-153.0,0.00020685,2]
[334573110,1723251040937,-153.0,0.00020685,2]
[334573111,1723251040948,-153.0,0.00020685,2]
[334573112,1723251040957,-153.0,0.00020685,2]
[334573113,1723251040966,-267.8162636,0.00020685,2]
[334573114,1723251040976,-267.8162636,0.00020685,2]
[334573115,1723251040985,-267.8162636,0.00020685,2]
[334573116,1723251040994,-267.8162636,0.00020685,2]
[334573117,1723251041004,-151.0,0.00020696,2]
[334573119,1723251041013,-439.008899,0.00020696,2]
[334573121,1723251041025,-439.008899,0.00020696,2]
[334573123,1723251041036,-151.0,0.00020696,2]
[334573124,1723251041171,-150.0,0.00020696,2]
[334573125,1723251041180,-540.897,0.00020696,2]
[334573126,1723251041191,-1412.0,0.00020696,2]
[334573127,1723251041200,-246.06013,0.00020701,2]
[334573128,1723251041210,-246.06013,0.00020701,2]
[334573129,1723251041219,-485.943462,0.00020701,2]
[334573130,1723251041230,-181.058956,0.00020701,2]
[334573131,1723251041239,-485.943462,0.00020701,2]
[334573132,1723251041248,-218.18326497,0.0002071,2]
[334573133,1723251041258,-151.0,0.0002071,2]
[334573134,1723251041268,-203.551812,0.0002071,2]
[334573135,1723251041277,-203.551812,0.0002071,2]
[334573136,1723251041286,-205.378104,0.0002071,2]
[334573137,1723251041296,-439.008899,0.0002071,2]
[334573138,1723251041305,-439.008899,0.0002071,2]
[334573139,1723251041314,-151.0,0.0002071,2]
[334573140,1723251041323,-246.06013,0.0002071,2]
[334573141,1723251041332,-246.06013,0.0002071,2]
[334573142,1723251041342,-485.943462,0.0002071,2]
[334573143,1723251041351,-485.943462,0.0002071,2]
[334573144,1723251041362,-42432.59107435,0.0002072,2]
[334573145,1723251041370,-151.0,0.0002072,2]
[334573146,1723251041380,-203.551812,0.0002072,2]
[334573147,1723251041389,-203.551812,0.0002072,2]
[334573148,1723251041399,-227.006166,0.0002072,2]
[334573149,1723251041408,-227.006166,0.0002072,2]
[334573150,1723251041420,-151.0,0.0002072,2]
[334573152,1723251041429,-246.06013,0.00020721,2]
[334573154,1723251041438,-246.06013,0.00020721,2]
[334573156,1723251041448,-485.943462,0.00020721,2]
[334573158,1723251041458,-485.943462,0.00020721,2]
[334573160,1723251041468,-2000.0,0.00020721,2]
[334573162,1723251041478,-439.008899,0.00020733,2]
[334573164,1723251041487,-439.008899,0.00020733,2]
[334573166,1723251041496,-151.0,0.00020733,2]
[334573168,1723251041506,-1000.0,0.00020741,2]
[334573170,1723251041515,-1000.0,0.00020763,2]
[334573171,1723251041525,-1000.0,0.00020769,2]
[334573172,1723251041534,-1000.0,0.00020782,2]
[334573173,1723251041544,-150.112233,0.000208,2]
[334573174,1723251041553,-150.112233,0.000208,4]
[334573175,1723251041563,-150.112233,0.000208,3]
[334573176,1723251041573,-151.0,0.000208,2]
[334573177,1723251041584,-1005.013645,0.000208,2]
[334573178,1723251041594,-150.01,0.00020818,2]
[334573179,1723251041603,-2993.10206773,0.00020818,2]
[334573180,1723251041613,-1000.0,0.00020819,2]
[334573181,1723251041623,-323.50650985,0.0002082,3]
[334573182,1723251041632,-500.0,0.00020821,3]
[334573183,1723251041642,-500.0,0.00020821,3]
[334573184,1723251041651,-500.0,0.00020821,3]
[334573185,1723251041661,-500.0,0.00020821,3]
[334573186,1723251041672,-500.0,0.00020821,3]
[334573187,1723251041681,-500.0,0.00020821,3]
[334573188,1723251041691,-550.48198934,0.00020821,3]
[334573189,1723251041700,-500.0,0.00020821,3]
[334573190,1723251041710,-501.17615123,0.00020821,3]
[334573191,1723251041720,-501.33504653,0.00020821,3]
[334573192,1723251041729,-500.0,0.00020821,3]
[334573193,1723251041739,-500.0,0.00020821,3]
[334573194,1723251041748,-502.14868322,0.00020821,3]
[334573195,1723251041758,-500.0,0.00020821,3]
[334573196,1723251041767,-500.0,0.00020821,3]
[334573197,1723251041777,-501.8058814,0.00020821,3]
[334573198,1723251041786,-500.0,0.00020821,2]
[334573199,1723251041795,-500.0,0.00020821,3]
[334573200,1723251041805,-500.0,0.00020821,3]
[334573201,1723251041814,-502.15523771,0.00020821,3]
[334573202,1723251041824,-500.0,0.00020821,3]
[334573203,1723251041833,-1004.23,0.00020821,3]
[334573204,1723251041843,-506.76471573,0.00020821,3]
[334573205,1723251041852,-500.0,0.00020821,3]
[334573206,1723251041862,-500.0,0.00020821,3]
[334573207,1723251041872,-501.60488669,0.00020821,3]
[334573208,1723251041881,-500.0,0.00020821,3]
[334573209,1723251041890,-500.0,0.00020821,2]
[334573210,1723251041900,-500.0,0.00020821,3]
[334573211,1723251041909,-500.0,0.00020821,3]
[334573212,1723251041920,-500.0,0.00020821,3]
[334573213,1723251041929,-559.40974484,0.00020821,3]
[334573214,1723251041938,-500.0,0.00020821,3]
[334573215,1723251041948,-500.0,0.00020821,3]
[334573216,1723251041957,-500.0,0.00020821,3]
[334573217,1723251041967,-500.0,0.00020821,3]
[334573218,1723251041976,-500.0,0.00020821,3]
[334573219,1723251041985,-500.0,0.00020821,3]
[334573220,1723251041995,-500.0,0.00020821,3]
[334573221,1723251042004,-500.0,0.00020821,3]
[334573222,1723251042014,-500.0,0.00020821,3]
[334573223,1723251042025,-500.0,0.00020821,3]
[334573224,1723251042037,-503.85877108,0.00020821,3]
[334573225,1723251042047,-507.53478463,0.00020821,3]
[334573226,1723251042058,-806.11,0.00020821,3]
[334573227,1723251042069,-370.23526866,0.00020821,3]
[334573228,1723251042078,-500.0,0.00020821,3]
[334573229,1723251042088,-500.0,0.00020821,3]
[334573230,1723251042097,-500.0,0.00020821,3]
[334573231,1723251042106,-579.8241454,0.00020821,3]
[334573232,1723251042116,-500.0,0.00020821,3]
[334573233,1723251042126,-500.0,0.00020821,3]
[334573234,1723251042135,-500.0,0.00020821,3]
[334573235,1723251042146,-180.00000001,0.00020821,3]
[334573236,1723251042159,-502.67089019,0.00020821,3]
[334573237,1723251042172,-500.0,0.00020821,3]
[334573238,1723251042181,-500.0,0.00020821,3]
[334573239,1723251042191,-500.0,0.00020821,3]
[334573240,1723251042205,-500.91906904,0.00020821,3]
[334573241,1723251042215,-500.44430303,0.00020821,3]
[334573242,1723251042225,-153.26029432,0.00020821,3]
[334573243,1723251042236,-500.0,0.00020821,3]
[334573244,1723251042246,-500.94018514,0.00020821,3]
[334573245,1723251042256,-500.0,0.00020821,3]
[334573246,1723251042266,-500.0,0.00020821,3]
[334573247,1723251042275,-500.0,0.00020821,3]
[334573248,1723251042284,-446.15204924,0.00020821,3]
[334573249,1723251042293,-500.0,0.00020821,3]
[334573250,1723251042303,-500.0,0.00020821,3]
[334573251,1723251042312,-694.87,0.00020821,3]
[334573252,1723251042321,-500.0,0.00020821,3]
[334573253,1723251042331,-500.0,0.00020821,3]
[334573254,1723251042340,-500.0,0.00020821,3]
[334573255,1723251042350,-500.0,0.00020821,3]
[334573256,1723251042360,-500.0,0.00020821,3]
[334573257,1723251042369,-500.0,0.00020821,3]
[334573258,1723251042378,-500.71113539,0.00020821,3]
[334573259,1723251042387,-500.0,0.00020821,3]
[334573260,1723251042396,-500.0,0.00020821,3]
[334573261,1723251042405,-500.0,0.00020821,3]
[334573262,1723251042415,-500.0,0.00020821,3]
[334573263,1723251042425,-501.44134208,0.00020821,3]
[334573264,1723251042434,-500.0,0.00020821,3]
[334573265,1723251042444,-500.0,0.00020821,3]
[334573266,1723251042453,-500.0,0.00020821,3]
[334573267,1723251042463,-514.60669039,0.00020821,3]
[334573268,1723251042472,-664.32,0.00020821,3]
[334573269,1723251042482,-500.0,0.00020821,3]
[334573270,1723251042492,-500.0,0.00020821,3]
[334573271,1723251042502,-500.0,0.00020821,3]
[334573272,1723251042512,-502.80624947,0.00020821,3]
[334573273,1723251042523,-500.0,0.00020821,3]
[334573274,1723251042533,-500.0,0.00020821,3]
[334573275,1723251042542,-500.0,0.00020821,3]
[334573276,1723251042552,-500.0,0.00020821,3]
[334573277,1723251042562,-504.11520888,0.00020821,3]
[334573278,1723251042572,-622.23162807,0.00020821,3]
[334573279,1723251042582,-500.0,0.00020821,3]
[334573280,1723251042591,-505.853776,0.00020821,3]
[334573281,1723251042601,-500.0,0.00020821,3]
[334573282,1723251042611,-500.0,0.00020821,3]
[334573283,1723251042620,-500.0,0.00020821,3]
[334573284,1723251042630,-500.0,0.00020821,3]
[334573285,1723251042639,-500.0,0.00020821,3]
[334573286,1723251042648,-500.0,0.00020821,3]
[334573287,1723251042658,-502.9075814,0.00020821,3]
[334573288,1723251042670,-502.40278782,0.00020821,3]
[334573289,1723251042680,-500.0,0.00020821,3]
[334573290,1723251042690,-500.0,0.00020821,3]
[334573291,1723251042699,-500.0,0.00020821,3]
[334573292,1723251042709,-688.81,0.00020821,3]
[334573293,1723251042719,-500.0,0.00020821,3]
[334573294,1723251042729,-500.0,0.00020821,3]
[334573295,1723251042738,-500.0,0.00020821,3]
[334573296,1723251042749,-504.30925281,0.00020821,3]
[334573297,1723251042758,-500.0,0.00020821,3]
[334573298,1723251042768,-500.0,0.00020821,3]
[334573299,1723251042778,-1128.8,0.00020821,3]
[334573300,1723251042789,-988.24,0.00020821,3]
[334573301,1723251042800,-500.0,0.00020821,3]
[334573302,1723251042810,-500.0,0.00020821,3]
[334573303,1723251042820,-500.0,0.00020821,3]
[334573304,1723251042830,-500.0,0.00020821,3]
[334573305,1723251042840,-517.68,0.00020821,3]
[334573306,1723251042850,-512.74,0.00020821,3]
[334573307,1723251042860,-500.0,0.00020821,3]
[334573308,1723251042870,-500.0,0.00020821,3]
[334573309,1723251042881,-500.0,0.00020821,3]
[334573310,1723251042891,-510.21814292,0.00020821,3]
[334573311,1723251042901,-500.0,0.00020821,3]
[334573312,1723251042911,-389.38799456,0.00020821,3]
[334573313,1723251042925,-1307.63,0.00020821,3]
[334573314,1723251042935,-500.0,0.00020821,3]
[334573315,1723251042945,-157.48881996,0.00020821,3]
[334573316,1723251042955,-500.0,0.00020821,3]
[334573317,1723251042964,-500.0,0.00020821,3]
[334573318,1723251042974,-500.0,0.00020821,3]
[334573319,1723251042984,-500.0,0.00020821,3]
[334573320,1723251042994,-500.0,0.00020821,3]
[334573321,1723251043003,-500.0,0.00020821,3]
[334573322,1723251043013,-1292.35,0.00020821,3]
[334573323,1723251043023,-506.89972632,0.00020821,3]
[334573324,1723251043032,-500.0,0.00020821,3]
[334573326,1723251043042,-500.0,0.00020821,3]
[334573328,1723251043052,-1155.16,0.00020821,3]
[334573329,1723251043062,-500.0,0.00020821,3]
[334573330,1723251043072,-500.0,0.00020821,3]
[334573331,1723251043082,-543.82378332,0.00020821,3]
[334573332,1723251043093,-684.55,0.00020821,3]
[334573333,1723251043103,-549.43,0.00020821,3]
[334573334,1723251043112,-502.85320452,0.00020821,3]
[334573335,1723251043122,-500.0,0.00020821,3]
[334573336,1723251043132,-500.0,0.00020821,3]
[334573337,1723251043142,-500.0,0.00020821,3]
[334573338,1723251043156,-500.0,0.00020821,3]
[334573341,1723251043168,-1069.89,0.00020821,3]
[334573344,1723251043178,-500.0,0.00020821,3]
[334573346,1723251043188,-500.0,0.00020821,3]
[334573348,1723251043198,-500.0,0.00020821,3]
[334573349,1723251043209,-556.83,0.00020821,3]
[334573351,1723251043219,-1206.61,0.00020821,3]
[334573352,1723251043231,-609.44,0.00020821,3]
[334573353,1723251043241,-264.49225442,0.00020821,3]
[334573354,1723251043250,-500.0,0.00020821,3]
[334573355,1723251043260,-500.0,0.00020821,3]
[334573356,1723251043269,-500.0,0.00020821,3]
[334573357,1723251043279,-500.0,0.00020821,3]
[334573359,1723251043288,-500.0,0.00020821,3]
[334573360,1723251043297,-500.0,0.00020821,3]
[334573361,1723251043306,-500.0,0.00020821,3]
[334573362,1723251043315,-280.89092439,0.00020821,3]
[334573363,1723251043324,-500.0,0.00020821,3]
[334573364,1723251043334,-500.0,0.00020821,3]
[334573366,1723251043343,-503.14794682,0.00020821,3]
[334573367,1723251043353,-500.0,0.00020821,3]
[334573368,1723251043363,-500.0,0.00020821,3]
[334573369,1723251043373,-699.47,0.00020821,3]
[334573370,1723251043382,-500.0,0.00020821,3]
[334573371,1723251043391,-501.46161835,0.00020821,3]
[334573373,1723251043401,-504.60385927,0.00020821,3]
[334573374,1723251043413,-500.0,0.00020821,3]
[334573375,1723251043423,-500.0,0.00020821,3]
[334573376,1723251043431,-500.0,0.00020821,3]
[334573377,1723251043442,-500.0,0.00020821,3]
[334573378,1723251043451,-502.20387052,0.00020821,3]
[334573379,1723251043461,-500.0,0.00020821,3]
[334573380,1723251043470,-500.0,0.00020821,2]
[334573381,1723251043479,-500.0,0.00020821,3]
[334573382,1723251043488,-500.0,0.00020821,3]
[334573383,1723251043497,-529.97,0.00020821,3]
[334573384,1723251043507,-510.99582983,0.00020821,3]
[334573385,1723251043516,-500.0,0.00020821,3]
[334573386,1723251043525,-621.34226781,0.00020821,3]
[334573387,1723251043534,-500.0,0.00020821,3]
[334573388,1723251043544,-773.76,0.00020821,3]
[334573389,1723251043553,-500.0,0.00020821,3]
[334573390,1723251043562,-500.57111753,0.00020821,3]
[334573391,1723251043572,-500.0,0.00020821,2]
[334573392,1723251043582,-500.0,0.00020821,3]
[334573393,1723251043704,-500.0,0.00020821,3]
[334573394,1723251043714,-500.0,0.00020821,3]
[334573395,1723251043723,-500.0,0.00020821,3]
[334573396,1723251043732,-500.0,0.00020821,3]
[334573397,1723251043741,-501.86586559,0.00020821,3]
[334573398,1723251043750,-500.0,0.00020821,3]
[334573399,1723251043759,-891.78,0.00020821,3]
[334573400,1723251043768,-500.0,0.00020821,3]
[334573401,1723251043777,-503.29431939,0.00020821,3]
[334573402,1723251043787,-500.0,0.00020821,3]
[334573403,1723251043796,-894.36,0.00020821,3]
[334573404,1723251043805,-500.0,0.00020821,3]
[334573405,1723251043814,-500.0,0.00020821,3]
[334573406,1723251043824,-500.0,0.00020821,3]
[334573408,1723251043834,-502.22106463,0.00020821,3]
[334573410,1723251043844,-500.0,0.00020821,3]
[334573412,1723251043853,-525.61005353,0.00020821,3]
[334573414,1723251043862,-539.0497334,0.00020821,3]